Cogmind - Beta 12 @@@ ROGUE MODE // 2024.01.24 @ 00:18:07 Player: Jiyva Result: Destroyed by D-53 Grenadier with Mini Grenade Launcher Performance ------------- Evolutions (1) 500 Regions Visited (3) 600 Robots Destroyed (44) 220 Value Destroyed (944) 944 Prototype IDs (2) 40 Alien Tech Used (0) 0 Bonus (79) 79 TOTAL SCORE: 2383 Bonus ------- High Alert Combat Kills 79 Cogmind --------- Core Integrity 0/400 Matter 300/300 Energy 9/100 System Corruption 0% Temperature Cool (0) Movement Core (100) Ox1 Location -9/Mines Parts ------- > --- POWER (1) -------- (None) > --- PROPULSION (2) --- (None) > --- UTILITY (4) ------ Visual Processing Unit > --- WEAPON (2) ------- Medium Laser Advanced Beam Cannon > --- INVENTORY (5) ---- (None) Peak State ------------ > --- POWER ------------ Ion Engine > --- PROPULSION ------- Wheel Armored Wheel > --- UTILITY ---------- Visual Processing Unit Terrain Scanner Light Armor Plating Shield Generator > --- WEAPON ----------- Light Cannon Light Cannon > --- INVENTORY -------- Ion Engine Wheel Compact Wheel Medium Laser Grenade Launcher [Rating: 12] Favorites ----------- Power Ion Engine Engine Ion Engine Propulsion Wheel Wheel Wheel Utility Light Armor Plating Device Shield Generator Storage Small Storage Unit Processor Visual Processing Unit Protection Light Armor Plating Weapon Light Cannon Energy Gun Medium Laser Energy Cannon Advanced Beam Cannon Ballistic Cannon Light Cannon Launcher Grenade Launcher Build | -11 -10 -9 -9 ------- Run | Jun Mat Mat Min Slots Evolved 2 | . . 2 . Power . | . . . . Propulsion . | . . . . Utility 2 | . . 2 . Weapon . | . . . . Parts Attached 45 | 6 11 25 3 Power 6 | 1 1 4 . Engine 6 | 1 1 4 . Core . | . . . . Reactor . | . . . . Propulsion 10 | 2 . 7 1 Treads . | . . . . Leg . | . . . . Wheel 10 | 2 . 7 1 Hover . | . . . . Flight . | . . . . Utility 8 | 1 4 3 . Device 4 | . 3 1 . Storage 2 | 1 . 1 . Processor 1 | . . 1 . Hackware . | . . . . Protection 1 | . 1 . . Artifact . | . . . . Weapon 21 | 2 6 11 2 Energy Gun 9 | 2 4 2 1 Energy Cannon 1 | . . 1 . Ballistic Gun . | . . . . Ballistic Cannon 6 | . 2 4 . Launcher 5 | . . 4 1 Special Weapon . | . . . . Impact Weapon . | . . . . Slashing Weapon . | . . . . Piercing Weapon . | . . . . Special Melee Weapon . | . . . . Unidentified Prototypes . | . . . . Parts Lost 10 | . . 4 6 Power 1 | . . . 1 Propulsion 4 | . . 1 3 Utility 3 | . . 2 1 Weapon 2 | . . 1 1 Highest Loss Streak 4 | . . 2 4 To Critical Strikes 1 | . . 1 . Average Slot Usage (%) 90 | . 99 85 65 Engine 12 | . 14 11 11 Wheel 24 | . 28 21 13 Device 14 | . 11 18 11 Storage 1 | . 3 . . Processor 5 | . . 11 11 Protection 8 | . 12 5 . Energy Gun 10 | . 19 2 4 Energy Cannon 2 | . . 2 11 Ballistic Cannon 8 | . 8 11 . Naked Turns . | . . . . Heaviest Build 17 | 13 16 17 14 Greatest Support 28 | 20 20 28 26 Greatest Overweight (x) 4 | . . . 4 Average Overweight (x) . | . . . . Largest Inventory Capacity 15 | 8 8 15 5 Average Capacity 5 | 6 5 5 5 Most Carried 5 | 2 5 5 2 Average Carried 3 | . 4 3 1 Final Capacity 8 | 8 5 5 5 Final Carried 4 | 2 4 3 . Class Distribution -------------------- 95% | Mutant 4% | Scavenger-Mutant Dominant Class ---------------- Mutant | -10/Materials Mutant | -9/Materials Mutant | -9/Mines Resources | -11 -10 -9 -9 ----------- Run | Jun Mat Mat Min Matter Collected 1034 | 189 151 654 40 Remotely . | . . . . Salvage Created 1058 | . 254 752 52 Parts 79 | . 14 63 2 Haulers Intercepted 3 | . . 3 . Recyclers Shooed 2 | . . 2 . Parts Field Recycled . | . . . . Retrieved Matter . | . . . . Parts Self-Destructed . | . . . . Prevented . | . . . . Kills | -11 -10 -9 -9 ------- Run | Jun Mat Mat Min Combat Hostiles Destroyed 35 | . 5 28 2 Guns 4 | . 4 . . Cannons 25 | . . 24 1 AOE 6 | . 1 4 1 Classes Destroyed 9 | . 2 7 . Worker 1 | . . 1 . Hauler 3 | . . 3 . Recycler 2 | . . 2 . Watcher 3 | . 1 2 . Swarmer 15 | . . 15 . Grunt 15 | . 5 9 1 Brawler 2 | . . 2 . Duelist 2 | . . 1 1 Protector 1 | . . 1 . Best Kill Streak 11 | . 2 11 1 Combat Bots Only 10 | . 1 10 1 Max Kills in Single Turn 4 | . 1 4 1 Gunslinging . | . . . . Exploded 3 | . 1 3 1 Melee . | . . . . Uniques/NPCs Destroyed . | . . . . Combat | -11 -10 -9 -9 -------- Run | Jun Mat Mat Min Damage Taken 1501 | . 202 823 476 Core 452 | . 43 170 239 Absorbed by Shields 371 | . . 264 107 Regen/Repaired (Parts) 23 | . . 23 . Core Remaining (%) 91 | 100 82 . . Volleys Fired 92 | . 22 61 9 Largest 2 | . 2 2 2 Hottest 118 | . 90 70 118 Shots Fired 157 | . 44 99 14 Gun 45 | . 42 1 2 Cannon 102 | . 2 91 9 Launcher 10 | . . 7 3 Special . | . . . . Kinetic 84 | . 2 82 . Thermal 54 | . 33 10 11 Explosive 10 | . . 7 3 Electromagnetic 9 | . 9 . . Robot Hit Streak 13 | . 9 9 13 Robot Miss Streak 4 | . 4 3 2 Penetration Max . | . . . . Secondary Targets . | . . . . Shots Hit Robots 94 | . 27 56 11 Core Hits 59 | . 10 45 4 Critical Kills . | . . . . Critical Parts Destroyed . | . . . . Critical Strikes 3 | . . 3 . Blast 3 | . . 3 . Melee Attacks . | . . . . Impact . | . . . . Slashing . | . . . . Piercing . | . . . . Sneak Attacks . | . . . . Combat Hostiles . | . . . . Follow-up Attacks . | . . . . Damage Inflicted 2223 | . 318 1605 300 Guns 313 | . 303 10 . Cannons 1239 | . 15 1061 163 Explosions 663 | . . 526 137 Melee . | . . . . Ramming 8 | . . 8 . Kinetic 910 | . 15 895 . Thermal 556 | . 217 176 163 Explosive 663 | . . 526 137 Electromagnetic 86 | . 86 . . Impact . | . . . . Slashing . | . . . . Piercing . | . . . . Highest Corruption . | . . . . Average Corruption . | . . . . Corruption Purged . | . . . . Corruption Blocked . | . . . . Overload Shots . | . . . . Overflow Damage . | . . . . Projectiles . | . . . . Explosions . | . . . . Melee . | . . . . Knockbacks 14 | . 1 13 . Impact . | . . . . Kinetic 12 | . 1 11 . Secondary 2 | . . 2 . Self-Inflicted Damage 90 | . . 43 47 Shots 5 | . . 3 2 Rammed 3 | . . 3 . Targets Rammed 3 | . . 3 . Kicked . | . . . . Crushed . | . . . . Highest Temperature 203 | . 203 141 96 Average Temperature 54 | . 70 51 30 Received Heat Transfer 337 | . 111 214 12 Siege Activations . | . . . . Robots Corrupted . | . . . . Combat Hostiles . | . . . . Parts Fried . | . . . . Impact Corruptions . | . . . . Robots Melted . | . . . . Combat Hostiles . | . . . . Parts Melted . | . . . . Heat Transferred 1140 | . 523 321 296 Parts Sabotaged . | . . . . Parts Stolen . | . . . . Parts Stripped . | . . . . Power Chain Reactions . | . . . . Missiles Intercepted . | . . . . Alert | -11 -10 -9 -9 ------- Run | Jun Mat Mat Min Peak Influence 594 | . 246 594 216 Initial 169 | . . . 169 Average 200 | . 69 377 197 Maximum Alert Level 2 | . 1 2 1 Low Security (%) 57 | 100 88 20 42 Level 1 17 | . 11 15 57 Level 2 24 | . . 63 . Level 3 . | . . . . Level 4 . | . . . . Level 5 . | . . . . High Security . | . . . . Max Security . | . . . . Squads Dispatched 5 | . 1 4 . Investigation . | . . . . Extermination . | . . . . Reinforcement 3 | . 1 2 . Assault 2 | . . 2 . Garrison . | . . . . Intercept . | . . . . Searches Triggered . | . . . . Construction Impeded . | . . . . Haulers Reinforced . | . . . . Active Scanning Responses . | . . . . Cargo Convoy Interrupts . | . . . . Stealth | -11 -10 -9 -9 --------- Run | Jun Mat Mat Min Distress Signals 4 | . 1 3 . Communications Jammed . | . . . . Distress Signals . | . . . . Times Spotted 69 | . 11 37 21 Peak Tracking Total 17 | . 6 6 17 Tactical Retreats 6 | . 4 1 1 Traps | -11 -10 -9 -9 ------- Run | Jun Mat Mat Min Traps Triggered . | . . . . Indirectly . | . . . . Trap Hack Attempts . | . . . . Triggered . | . . . . Disarmed . | . . . . Reprogrammed . | . . . . Reused . | . . . . Traps Extracted . | . . . . Installed . | . . . . Triggered 2 | . 2 . . Machines | -11 -10 -9 -9 ---------- Run | Jun Mat Mat Min Machines Disabled . | . . . . Max in Single Turn . | . . . . Machines Repaired . | . . . . Machines Sabotaged . | . . . . Overloaded Fab Kills . | . . . . Hacking | -11 -10 -9 -9 --------- Run | Jun Mat Mat Min Machines Accessed 10 | . 4 6 . Terminals 7 | . 3 4 . Fabricators . | . . . . Repair Stations 1 | . . 1 . Recycling Units 2 | . 1 1 . Scanalyzers . | . . . . Garrison Access . | . . . . Total Hacks 20 | . 6 14 . Successful 12 | . 4 8 . Failed 8 | . 2 6 . Catastrophic 1 | . . 1 . Database Lockouts . | . . . . Manual . | . . . . Terminals 12 | . 5 7 . Fabricators . | . . . . Repair Stations 5 | . . 5 . Recycling Units 3 | . 1 2 . Scanalyzers . | . . . . Garrison Access . | . . . . Terminal Hacks 6 | . 3 3 . Robot Analysis 1 | . 1 . . Prototype ID Bank 1 | . 1 . . Investigation Status 1 | . . 1 . Hauler Manifests 2 | . . 2 . Zone Layout 1 | . 1 . . Fabricator Hacks . | . . . . Repair Station Hacks 3 | . . 3 . Scan Component 2 | . . 2 . Repair 1 | . . 1 . Recycling Unit Hacks 3 | . 1 2 . Report Inventory 2 | . 1 1 . Retrieve Components 1 | . . 1 . Scanalyzer . | . . . . Garrison Access Hacks . | . . . . Unauthorized Hacks . | . . . . Terminals . | . . . . Fabricators . | . . . . Repair Stations . | . . . . Recycling Units . | . . . . Scanalyzers . | . . . . Garrison Access . | . . . . Data Cores Recovered . | . . . . Used . | . . . . Hacking Detections 4 | . . 4 . Full Trace Events . | . . . . Feedback Events . | . . . . Feedback Blocked . | . . . . Robot Schematics Acquired . | . . . . Robots Built . | . . . . Authchips . | . . . . Time . | . . . . Total Robot Build Rating . | . . . . Part Schematics Acquired . | . . . . Parts Built . | . . . . Authchips . | . . . . Time . | . . . . Total Part Build Rating . | . . . . Parts Repaired 1 | . . 1 . Time 26 | . . 26 . Parts Recycled . | . . . . Recycled Matter . | . . . . Retrieved Matter . | . . . . Retrieved Components 10 | . . 10 . Parts Scanalyzed . | . . . . Part Schematics Acquired . | . . . . Parts Damaged . | . . . . Bothacking | -11 -10 -9 -9 ------------ Run | Jun Mat Mat Min Used RIF Installer . | . . . . Robots Hacked . | . . . . Non-combat . | . . . . Combat . | . . . . Robot Hacks Applied . | . . . . Relay Couplers Released . | . . . . Fabnet Peak Effective % . | . . . . Robots Rewired . | . . . . Allies Hacked . | . . . . Hacks Repelled . | . . . . Allies | -11 -10 -9 -9 -------- Run | Jun Mat Mat Min Total Allies . | . . . . Largest Group . | . . . . Highest-Rated Group . | . . . . Highest-Rated Ally . | . . . . Total Orders . | . . . . Ally Attacks . | . . . . Total Damage . | . . . . Kills . | . . . . Allies Corrupted . | . . . . Allies Melted . | . . . . Intel | -11 -10 -9 -9 ------- Run | Jun Mat Mat Min Robot Analysis Total 1 | . 1 . . Derelict Logs Recovered 1 | . . . 1 Drone Launches . | . . . . Drone Recoveries . | . . . . Exploration | -11 -10 -9 -9 ------------- Run | Jun Mat Mat Min Turns Passed 2097 | 54 1008 813 222 Spaces Moved 1096 | 58 349 506 183 Core 20 | 15 . . 5 Treads . | . . . . Legs . | . . . . Wheels 1076 | 43 349 506 178 Hover . | . . . . Flight . | . . . . Fastest Speed 50 | 50 80 80 90 Average Speed 86 | 72 80 87 100 Slowest Speed 250 | 80 80 95 250 Overloaded Moves . | . . . . Propulsion Burnouts . | . . . . Robots Hopped . | . . . . Cave-ins Triggered . | . . . . Exploration Rate (%) 30 | 4 38 43 36 Regions Visited 3 Branch Regions 1 Pre-discovered Areas 1 | . . . 1 Known Exits Taken . | . . . . Unknown Exits Taken 3 | 1 1 1 . Scrap Searched . | . . . . Spaces Dug . | . . . . Terrain Destroyed 50 | . . 32 18 Melee . | . . . . Projectile . | . . . . AOE 50 | . . 32 18 Terrain Rammed . | . . . . Walls Destroyed . | . . . . Machines Disabled . | . . . . Actions | -11 -10 -9 -9 --------- Run | Jun Mat Mat Min Total 2080 | 66 1034 773 207 Wait 820 | 1 639 168 12 Move 1093 | 57 348 505 183 Hop . | . . . . Pick Up 8 | 2 4 2 . Fast Attach 14 | 6 5 3 . Attach 7 | . 1 3 3 Detach 4 | . 3 1 . Swap 24 | . 5 19 . Drop 15 | . 7 8 . Fire 92 | . 22 61 9 Melee . | . . . . Ram 3 | . . 3 . Kick . | . . . . Crush . | . . . . Escape Stasis . | . . . . Rewire . | . . . . Trap . | . . . . Miscellaneous . | . . . . Route ------- -11/Junkyard -10/Materials -9/Materials (discovered 3 exits: [*Min x2] / [*Sto]) -9/Mines History --------- Turn | Location | Event 3 | -11/Junkyard | Discovered new exit (range 16) 55 | -11/Junkyard | Entered Materials 345 | -10/Materials | Build established: Mutant 474 | -10/Materials | Discovered new exit (range 15) 1063 | -10/Materials | Entered another Materials area 1063 | -9/Materials | Evolved 2 slots: Utility x2 1125 | -9/Materials | Discovered new exit (range 4) 1169 | -9/Materials | Repaired Wheel 1222 | -9/Materials | Discovered new exit (range 17) 1463 | -9/Materials | First assault squad dispatched 1489 | -9/Materials | Destroyed 10 combat bots 1508 | -9/Materials | Discovered new exit (range 2) 1876 | -9/Materials | Entered Mines 1908 | -9/Mines | Core integrity fell below 50% 2064 | -9/Mines | Assembled infested the area 2093 | -9/Mines | Core integrity fell below 20% 2098 | -9/Mines | Destroyed by D-53 Grenadier with Mini Grenade Launcher Last Messages --------------- 02074_ Acquired derelict log, extracted data. World map updated: -8/Materials. 02078_ Com. Wheel destroyed. 02078_ as-23966 destroyed. 02083_ as-96217 destroyed. 02083_ as-76300 destroyed. 02083_ as-87865 destroyed. 02085_ as-02764 destroyed. 02085_ as-08725 destroyed. 02085_ as-64568 destroyed. 02085_ as-85142 destroyed. 02085_ as-00437 destroyed. 02085_ as-05711 destroyed. 02085_ as-20986 destroyed. 02087_ as-68334 destroyed. 02089_ as-85354 destroyed. 02092_ The unstable cave ceiling collapses. 02098_ Shield Generator destroyed. 02098_ Com. Wheel destroyed. 02098_ Ion Engine destroyed. Map ----- +----------------------------------------------------+ | ????????????????????????????????????????????????? | | ????????????????????????????????????????????????? | | ????????????????????????????????????????????????? | | ????????????????????????????????????????????????? | | ????????????????????????????????????????????????? | | ????????????????????????????????????????????????? | | ????????????????????????????????????????????????? | | ??????????????????????????????????##############? | | ?????????????????????????????????## #? | | ?????????????????????????????????# #? | | ?????????????????????????????????# ####### #? | | ?????????????????????????######### ##????# #? | | ?????????????????????????# #????# #? | | ?????????????????????????# #????# #? | | ?????????????????????????# #### #???## #? | | ?????????????????????????# #??# ##???# #? | | ????????????????????????## #??## ###????# #? | | ????????????????????????#t #???#####??????# #? | | ????????????????????????#t #??????###?????# #? | | ??????????????####??????# ###??????# #???## ##? | | ??????????????? #??#### ##??###??# #?## #?? | | ???????????#?####% ### ### ##?# ## ##?? | | ??????? #### # #??# ##??? | | ???? d #??# ##???? | | ???? ##?## ##????? | | ????? d @ #### ##????? | | ?????# < a ### ##???? | | ??????# # # ### ##??? | | ???????# # #### #??? | | ???????# # # #### #??? | | ????????# ??## #### #??? | | ????????#?# #?????## ##?# ## ##??? | | ???????????????????# ######?## #?## ##???? | | ???????????????????# ???????# #??# ###????? | | ???????????????????# ??????## #??# #??????? | | ??????????????????? ??????## #??# #??????? | | ??????????????????? ?????## #### #??????? | | ?????????????????? ?????## ## #??????? | | ??????????????????$?????## % ## #??????? | | ?????????????????##???### ## ## #??????? | | ?????????????????????## #### ## ##?????? | | ?????????????????????# # #?## ##????? | | ?????????????????????# #### ##???? | | ????????????????????# # # ##??? | | ???????????????????# ?# """ #??? | | ???????????????????# ??## """ #??? | | ???????????????????# ????# # """ ### #??? | | ???????????????????# ?????###### ##?# #??? | | ???????????????????# ??????????# ##?## ##?? | | ???????????????????#??????????# #??# #?? | +----------------------------------------------------+ Best States ------------- Heat Dissipation 35 Energy Generation 10 Energy Capacity 250 Matter Stores 300 Matter Capacity 300 Sight Range 18 Terrain Scan Range 14 Terrain Scan Density 10 Armor Coverage 150 Evasion (%) 50 Item Schematics ----------------- None Robot Schematics ------------------ None Fabricated ------------ Nothing Alien Tech Used ----------------- None Achievements -------------- None Challenges ------------ None Game ------ Seed RemoteArmoredLoader Manual? 0 Play Time 00:56:05 Cumulative 113.8 hours Start 2024.01.23 @ 23:22:14 End 2024.01.24 @ 00:18:07 Sessions 1 Manual Loads 0 Difficulty Rogue Special Mode None Game No. 39 Rogue 39 Adventurer 0 Explorer 0 Win Type - Total 0 Types 0/0/0/0/0/0/0/0/0 Lore% 18 Gallery% 46 Achievement% 31 Wizard Run 0 Options --------- ASCII 1 Keyboard 1 Movement Vi Keybinds 1 Fullscreen 1 Font 18/X11 Map View 76x50 Tactical HUD 1 Map Filters NONE Filters NONE Steam 1 RUN: c5a1c7ec-d381-4910-872e-8b16783d7bfc